fUST/lending_fUST_20250729
["ID","MTS","AMOUNT","RATE_DAILY","PERIOD"]
[375786034,1753745445618,-460.0,0.00020273,2]
[375786036,1753745445628,-462.32782164,0.00020447,2]
[375786038,1753745445637,-413.58,0.00020538,3]
[375786041,1753745445654,-921.85,0.00020547,2]
[375786044,1753745445669,-460.0,0.00020547,2]
[375786046,1753745445681,-484.36,0.00020547,2]
[375786048,1753745445691,-460.0,0.00020547,2]
[375786050,1753745445701,-523.82,0.00020547,2]
[375786052,1753745445712,-460.0,0.00020547,2]
[375786054,1753745445722,-460.0,0.00020547,2]
[375786056,1753745445733,-192.31603521,0.00020547,2]
[375786058,1753745445743,-460.0,0.00020547,2]
[375786060,1753745445753,-460.0,0.00020547,2]
[375786062,1753745445764,-460.0,0.00020547,2]
[375786064,1753745445776,-460.0,0.00020547,2]
[375786066,1753745445786,-460.0,0.00020547,2]
[375786068,1753745445796,-382.4725048,0.00020547,2]
[375786070,1753745445806,-460.0,0.00020547,2]
[375786072,1753745445818,-460.0,0.00020547,2]
[375786074,1753745445828,-996.47,0.00020547,2]
[375786076,1753745445839,-954.95,0.00020547,2]
[375786078,1753745445849,-499.1,0.00020547,2]
[375786080,1753745445859,-460.0,0.00020547,2]
[375786082,1753745445869,-483.0,0.00020679,2]
[375786084,1753745445879,-12634.73134317,0.00020699,2]
[375786086,1753745445889,-160.0,0.00020699,2]
[375786088,1753745445899,-840.90880427,0.00020699,2]
[375786090,1753745445909,-216.06083566,0.00020699,2]
[375786092,1753745445919,-160.0,0.00020699,2]
[375786094,1753745445931,-160.0,0.00020699,2]
[375786096,1753745445941,-214.87999826,0.00020699,2]
[375786098,1753745445950,-454.6043428,0.00020699,2]
[375786100,1753745445960,-526.58819812,0.00020699,2]
[375786102,1753745445970,-160.0,0.00020699,2]
[375786104,1753745445980,-231.34820253,0.00020699,2]
[375786106,1753745445990,-921.85,0.00020821,2]
[375786108,1753745446000,-460.0,0.00020821,2]
[375786110,1753745446010,-484.36,0.00020821,2]
[375786112,1753745446019,-460.0,0.00020821,2]
[375786114,1753745446030,-523.82,0.00020821,2]
[375786116,1753745446040,-460.0,0.00020821,2]
[375786118,1753745446050,-460.0,0.00020821,2]
[375786120,1753745446060,-460.0,0.00020821,2]
[375786122,1753745446070,-460.0,0.00020821,2]
[375786140,1753745446253,-460.0,0.00020821,2]
[375786142,1753745446264,-460.0,0.00020821,2]
[375786144,1753745446275,-544.55,0.00020821,2]
[375786146,1753745446284,-460.0,0.00020821,2]
[375786148,1753745446294,-460.0,0.00020821,2]
[375786150,1753745446304,-996.47,0.00020821,2]
[375786152,1753745446314,-954.95,0.00020821,2]
[375786154,1753745446324,-499.1,0.00020821,2]
[375786156,1753745446334,-460.0,0.00020821,2]
[375786158,1753745446344,-500.0,0.00020973,2]
[375786160,1753745446354,-185.65877725,0.00020995,2]
[375786162,1753745446364,-151.0,0.00021095,2]
[375786164,1753745446374,-921.85,0.00021095,2]
[375786166,1753745446383,-460.0,0.00021095,2]
[375786168,1753745446393,-484.36,0.00021095,2]
[375786170,1753745446403,-460.0,0.00021095,2]
[375786172,1753745446414,-523.82,0.00021095,2]
[375786174,1753745446427,-332.29,0.00021095,2]
[375786176,1753745446437,-460.0,0.00021095,2]
[375786178,1753745446447,-460.0,0.00021095,2]
[375786180,1753745446457,-460.0,0.00021095,2]
[375786182,1753745446468,-460.0,0.00021095,2]
[375786184,1753745446486,-460.0,0.00021095,2]
[375786186,1753745446495,-460.0,0.00021095,2]
[375786188,1753745446506,-460.0,0.00021095,2]
[375786190,1753745446516,-996.47,0.00021095,2]
[375786192,1753745446526,-954.95,0.00021095,2]
[375786194,1753745446535,-499.1,0.00021095,2]
[375786196,1753745446545,-175.46,0.00021095,2]
[375786198,1753745446556,-200.0,0.00021144,15]
[375786200,1753745446565,-200.0,0.00021144,15]
[375786202,1753745446575,-200.0,0.00021144,15]
[375786203,1753745446585,-200.0,0.00021144,15]
[375786206,1753745446595,-320.0,0.00021144,15]
[375786208,1753745446605,-186.2,0.00021346,4]
[375786209,1753745446615,-921.85,0.00021369,2]
[375786212,1753745446625,-460.0,0.00021369,2]
[375786213,1753745446634,-484.36,0.00021369,2]
[375786215,1753745446643,-460.0,0.00021369,2]
[375786217,1753745446654,-523.82,0.00021369,2]
[375786220,1753745446663,-460.0,0.00021369,2]
[375786221,1753745446673,-460.0,0.00021369,2]
[375786223,1753745446683,-460.0,0.00021369,2]
[375786225,1753745446693,-460.0,0.00021369,2]
[375786227,1753745446703,-460.0,0.00021369,2]
[375786229,1753745446713,-460.0,0.00021369,2]
[375786231,1753745446723,-460.0,0.00021369,2]
[375786233,1753745446733,-996.47,0.00021369,2]
[375786235,1753745446743,-954.95,0.00021369,2]
[375786237,1753745446753,-499.1,0.00021369,2]
[375786240,1753745446765,-7404.30895317,0.000214,2]
[375786253,1753745446892,-460.0,0.00019178,2]
[375786255,1753745446902,-460.0,0.00019452,2]
[375786257,1753745446912,-460.0,0.00019452,2]
[375786259,1753745446921,-460.0,0.00019726,2]
[375786261,1753745446934,-6015.15049491,0.000214,2]
[375786263,1753745446948,-330.154,0.000214,2]
[375786265,1753745446960,-622.40080329,0.000214,2]
[375786272,1753745447024,-460.0,0.00019178,2]
[375786274,1753745447035,-269.916902,0.00019178,2]
[375786276,1753745447047,-190.083098,0.00019178,2]
[375786278,1753745447057,-460.0,0.00019452,2]
[375786280,1753745447067,-326.19,0.00019452,2]
[375786282,1753745447077,-460.0,0.00019726,2]
[375786284,1753745447087,-2714.128084,0.000214,2]
[375786286,1753745447099,-500.0,0.000214,2]
[375786288,1753745447111,-6692.75959329,0.000214,2]
[375786290,1753745447121,-939.799,0.00021614,2]
[375786292,1753745447131,-921.85,0.00021643,2]
[375786295,1753745447141,-460.0,0.00021643,2]
[375786296,1753745447151,-484.36,0.00021643,2]
[375786298,1753745447161,-460.0,0.00021643,2]
[375786300,1753745447171,-523.82,0.00021643,2]
[375786302,1753745447182,-460.0,0.00021643,2]
[375786304,1753745447192,-460.0,0.00021643,2]
[375786306,1753745447201,-460.0,0.00021643,2]
[375786308,1753745447211,-460.0,0.00021643,2]
[375786310,1753745447221,-460.0,0.00021643,2]
[375786312,1753745447231,-460.0,0.00021643,2]
[375786314,1753745447242,-460.0,0.00021643,2]
[375786316,1753745447251,-996.47,0.00021643,2]
[375786318,1753745447261,-499.1,0.00021643,2]
[375786320,1753745447272,-668.25512157,0.00021643,2]
[375786322,1753745447284,-286.69487843,0.00021643,2]
[375786324,1753745447293,-186.2,0.00021798,4]
[375786326,1753745447303,-921.85,0.00021917,2]
[375786328,1753745447314,-460.0,0.00021917,2]
[375786330,1753745447324,-484.36,0.00021917,2]
[375786332,1753745447333,-460.0,0.00021917,2]
[375786334,1753745447342,-523.82,0.00021917,2]
[375786336,1753745447352,-460.0,0.00021917,2]
[375786338,1753745447362,-460.0,0.00021917,2]
[375786340,1753745447371,-460.0,0.00021917,2]
[375786342,1753745447381,-460.0,0.00021917,2]
[375786344,1753745447391,-460.0,0.00021917,2]
[375786346,1753745447400,-460.0,0.00021917,2]
[375786348,1753745447410,-460.0,0.00021917,2]
[375786350,1753745447420,-996.47,0.00021917,2]
[375786352,1753745447432,-499.1,0.00021917,2]
[375786354,1753745447441,-954.95,0.00021917,2]
[375786355,1753745447451,-574.69,0.00022,7]
[375786357,1753745447461,-151.0,0.00022,7]
[375786359,1753745447470,-5142.97,0.00022,7]
[375786362,1753745447480,-1216.28,0.00022,7]
[375786363,1753745447489,-38345.97604751,0.00022,4]
[375786365,1753745447501,-551.48610052,0.00022,2]
[375786368,1753745447511,-8118.20285793,0.00022,2]
[375786377,1753745447598,-460.0,0.00019178,2]
[375786379,1753745447608,-460.0,0.00019178,2]
[375786381,1753745447618,-460.0,0.00019178,2]
[375786383,1753745447628,-194.84894756,0.00019452,2]
[375786386,1753745447640,-265.15105244,0.00019452,2]
[375786388,1753745447649,-227.6,0.00019452,2]
[375786390,1753745447659,-503.43,0.00019726,2]
[375786392,1753745447669,-441.01283186,0.0002,2]
[375786955,1753746246828,21140.78017221,0.00018245,2]
[375786956,1753746246854,3759.21982779,0.00018245,2]
[375786961,1753746427143,-786.0,0.00019076,2]
[375786962,1753746427166,-254.364,0.00019076,2]
[375786963,1753746431129,-45.636,0.00019076,2]
[375786964,1753746431153,-300.0,0.00019077,2]
[375786965,1753746431174,-300.0,0.00019077,2]
[375786966,1753746431195,-300.0,0.00019077,2]
[375786967,1753746431217,-248.0,0.00019077,2]
[375786968,1753746431238,-1200.0,0.00019077,2]
[375786969,1753746431271,-4531.03473575,0.00019078,2]
[375787015,1753746632571,-300.0,0.00019077,2]
[375787017,1753746632581,-300.0,0.00019077,2]
[375787019,1753746632591,-300.0,0.00019077,2]
[375787021,1753746632600,-1200.0,0.00019077,2]
[375787023,1753746632610,-6128.10790548,0.00019078,2]
[375787050,1753746638684,-515.95806706,0.00019078,2]
[375787051,1753746638704,-5043.34131698,0.00019078,2]
[375787052,1753746638721,-2819.56,0.00019078,2]
[375787053,1753746638829,-19564.67005703,0.00019078,2]
[375787054,1753746638841,-184.42,0.00019168,3]
[375787056,1753746638853,-553.29,0.00019168,3]
[375787057,1753746638866,-500.0,0.00019173,2]
[375787058,1753746638879,-500.0,0.00019173,2]
[375787059,1753746638892,-500.0,0.00019173,2]
[375787060,1753746638905,-404.79100974,0.00019173,2]
[375787061,1753746638918,-20339.38094766,0.00019177,2]
[375787062,1753746638932,-500.0,0.00019177,2]
[375787063,1753746638946,-500.0,0.00019177,2]
[375787064,1753746638959,-500.0,0.00019177,2]
[375787065,1753746638971,-465.22099106,0.00019177,2]
[375787066,1753746638984,-500.0,0.00019177,2]
[375787067,1753746638999,-183.47667746,0.00019177,2]
[375787068,1753746639013,-333.3350158,0.00019177,2]
[375787069,1753746639026,-186.05240604,0.00019177,2]
[375787070,1753746639039,-500.0,0.00019177,2]
[375787071,1753746639052,-500.0,0.00019177,2]
[375787072,1753746639064,-500.0,0.00019177,2]
[375787073,1753746639076,-628.66466933,0.00019177,2]
[375787074,1753746639088,-500.0,0.00019177,2]
[375787075,1753746639100,-500.0,0.00019177,2]
[375787076,1753746639111,-266.09121745,0.00019177,2]
[375787077,1753746639121,-500.0,0.00019177,2]
[375787079,1753746639132,-500.0,0.00019177,2]
[375787080,1753746639147,-500.0,0.00019177,2]
[375787081,1753746639158,-500.0,0.00019177,2]
[375787082,1753746639168,-478.99071266,0.00019177,2]
[375787083,1753746639186,-500.0,0.00019177,2]
[375787084,1753746639198,-500.0,0.00019177,2]
[375787085,1753746639213,-500.0,0.00019177,2]
[375787086,1753746639225,-500.0,0.00019177,2]
[375787087,1753746639238,-500.0,0.00019177,2]
[375787088,1753746639251,-500.0,0.00019177,2]
[375787089,1753746639262,-500.0,0.00019177,2]
[375787090,1753746639275,-460.0,0.00019178,2]
[375787091,1753746639287,-460.0,0.00019178,2]
[375787092,1753746639300,-460.0,0.00019178,2]
[375787093,1753746639313,-212.58,0.00019178,2]
[375787094,1753746639327,-175.13827023,0.00019178,2]
[375787095,1753746639339,-460.0,0.00019178,2]
[375787096,1753746639351,-460.0,0.00019178,2]
[375787097,1753746639362,-460.0,0.00019178,2]
[375787098,1753746639372,-460.0,0.00019178,2]
[375787099,1753746639383,-460.0,0.00019178,2]
[375787100,1753746639393,-460.0,0.00019178,2]
[375787101,1753746639404,-460.0,0.00019178,2]
[375787102,1753746639415,-460.0,0.00019178,2]
[375787103,1753746639428,-460.0,0.00019178,2]
[375787104,1753746639442,-460.0,0.00019178,2]
[375787105,1753746639455,-460.0,0.00019178,2]
[375787106,1753746639468,-460.0,0.00019178,2]
[375787107,1753746639479,-460.0,0.00019178,2]
[375787108,1753746639490,-460.0,0.00019178,2]
[375787109,1753746639500,-460.0,0.00019178,2]
[375787110,1753746639511,-460.0,0.00019178,2]
[375787111,1753746639524,-460.0,0.00019178,2]
[375787112,1753746639536,-460.0,0.00019178,2]
[375787113,1753746639548,-460.0,0.00019178,2]
[375787114,1753746639560,-460.0,0.00019178,2]
[375787115,1753746639570,-347.84353872,0.00019178,2]
[375787116,1753746639581,-460.0,0.00019178,2]
[375787117,1753746639591,-460.0,0.00019178,2]
[375787118,1753746639602,-460.0,0.00019178,2]
[375787119,1753746639615,-460.0,0.00019178,2]
[375787120,1753746639625,-460.0,0.00019178,2]
[375787121,1753746639637,-460.0,0.00019178,2]
[375787122,1753746639649,-460.0,0.00019178,2]
[375787123,1753746639665,-460.0,0.00019178,2]
[375787124,1753746639677,-460.0,0.00019178,2]
[375787125,1753746639691,-460.0,0.00019178,2]
[375787126,1753746639703,-460.0,0.00019178,2]
[375787127,1753746639715,-460.0,0.00019178,2]
[375787128,1753746639727,-460.0,0.00019178,2]
[375787129,1753746639739,-460.0,0.00019178,2]
[375787130,1753746639751,-460.0,0.00019178,2]
[375787131,1753746639763,-460.0,0.00019178,2]
[375787132,1753746639775,-460.0,0.00019178,2]
[375787133,1753746639789,-460.0,0.00019178,2]
[375787134,1753746639800,-460.0,0.00019178,2]
[375787135,1753746639812,-460.0,0.00019178,2]
[375787136,1753746639824,-460.0,0.00019178,2]
[375787137,1753746639835,-460.0,0.00019178,2]
[375787138,1753746639848,-460.0,0.00019178,2]
[375787139,1753746639860,-460.0,0.00019178,2]
[375787140,1753746639871,-460.0,0.00019178,2]
[375787141,1753746639883,-460.0,0.00019178,2]
[375787142,1753746639895,-460.0,0.00019178,2]
[375787143,1753746639906,-460.0,0.00019178,2]
[375787144,1753746639917,-460.0,0.00019178,2]
[375787145,1753746639931,-460.0,0.00019178,2]
[375787146,1753746639944,-460.0,0.00019178,2]
[375787147,1753746639955,-460.0,0.00019178,2]
[375787148,1753746639966,-460.0,0.00019178,2]
[375787149,1753746639978,-460.0,0.00019178,2]
[375787150,1753746639989,-460.0,0.00019178,2]
[375787151,1753746640001,-460.0,0.00019178,2]
[375787152,1753746640012,-460.0,0.00019178,2]
[375787153,1753746640023,-274.867477,0.00019178,2]
[375787154,1753746640034,-460.0,0.00019178,2]
[375787155,1753746640046,-460.0,0.00019178,2]
[375787156,1753746640057,-460.0,0.00019178,2]
[375787157,1753746640069,-460.0,0.00019178,2]
[375787158,1753746640079,-460.0,0.00019178,2]
[375787159,1753746640091,-460.0,0.00019178,2]
[375787160,1753746640102,-396.39236859,0.00019178,2]
[375787161,1753746640114,-460.0,0.00019178,2]
[375787162,1753746640127,-460.0,0.00019178,2]
[375787163,1753746640141,-460.0,0.00019178,2]
[375787164,1753746640153,-460.0,0.00019178,2]
[375787165,1753746640165,-460.0,0.00019178,2]
[375787166,1753746640176,-460.0,0.00019178,2]
[375787167,1753746640187,-460.0,0.00019178,2]
[375787168,1753746640198,-460.0,0.00019178,2]
[375787169,1753746640210,-460.0,0.00019178,2]
[375787170,1753746640222,-460.0,0.00019178,2]
[375787171,1753746640234,-460.0,0.00019178,2]
[375787172,1753746640246,-461.04462295,0.00019178,2]
[375787173,1753746640258,-460.0,0.00019178,2]
[375787174,1753746640270,-460.0,0.00019178,2]
[375787175,1753746640282,-460.0,0.00019178,2]
[375787176,1753746640293,-460.0,0.00019178,2]
[375787177,1753746640306,-460.0,0.00019178,2]
[375787178,1753746640317,-425.10977352,0.00019178,2]
[375787179,1753746640328,-460.0,0.00019178,2]
[375787180,1753746640340,-460.0,0.00019178,2]
[375787181,1753746640350,-230.30582454,0.00019178,2]
[375787182,1753746640362,-460.0,0.00019178,2]
[375787183,1753746640375,-460.0,0.00019178,2]
[375787184,1753746640387,-460.0,0.00019178,2]
[375787185,1753746640398,-460.0,0.00019178,2]
[375787186,1753746640410,-460.0,0.00019178,2]
[375787187,1753746640423,-990.15,0.00019178,2]
[375787188,1753746640434,-460.0,0.00019178,2]
[375787193,1753746640721,-460.0,0.00019178,2]
[375787194,1753746640743,-460.0,0.00019178,2]
[375787195,1753746640753,-460.0,0.00019178,2]
[375787196,1753746640763,-460.0,0.00019178,2]
[375787197,1753746640772,-460.0,0.00019178,2]
[375787198,1753746640782,-460.0,0.00019178,2]
[375787199,1753746640791,-541.48219479,0.00019178,2]
[375787200,1753746640801,-460.0,0.00019178,2]
[375787201,1753746640810,-460.0,0.00019178,2]
[375787202,1753746640820,-460.0,0.00019178,2]
[375787203,1753746640829,-460.0,0.00019178,2]
[375787204,1753746640838,-460.0,0.00019178,2]
[375787205,1753746640848,-460.0,0.00019178,2]
[375787206,1753746640857,-460.0,0.00019178,2]
[375787207,1753746640867,-460.0,0.00019178,2]
[375787208,1753746640876,-460.0,0.00019178,2]
[375787209,1753746640886,-460.0,0.00019178,2]
[375787210,1753746640896,-460.0,0.00019178,2]
[375787211,1753746640906,-460.0,0.00019178,2]
[375787212,1753746640915,-460.0,0.00019178,2]
[375787213,1753746640924,-460.0,0.00019178,2]
[375787214,1753746640934,-460.0,0.00019178,2]
[375787215,1753746640945,-460.0,0.00019178,2]
[375787216,1753746640954,-460.0,0.00019178,2]
[375787217,1753746640964,-460.0,0.00019178,2]
[375787218,1753746640974,-460.0,0.00019178,2]
[375787219,1753746640984,-509.56939586,0.00019178,2]
[375787220,1753746640994,-460.0,0.00019178,2]
[375787221,1753746641004,-467.15668466,0.00019178,2]
[375787222,1753746641013,-460.0,0.00019178,2]
[375787223,1753746641022,-460.0,0.00019178,2]
[375787224,1753746641032,-462.81881752,0.00019178,2]
[375787225,1753746641041,-460.0,0.00019178,2]
[375787226,1753746641051,-460.0,0.00019178,2]
[375787227,1753746641060,-460.0,0.00019178,2]
[375787228,1753746641070,-464.52954203,0.00019178,2]
[375787229,1753746641080,-481.94138122,0.00019178,2]
[375787230,1753746641089,-460.0,0.00019178,2]
[375787231,1753746641099,-460.0,0.00019178,2]
[375787232,1753746641109,-460.0,0.00019178,2]
[375787233,1753746641118,-460.0,0.00019178,2]
[375787234,1753746641128,-460.0,0.00019178,2]
[375787235,1753746641139,-460.0,0.00019178,2]
[375787236,1753746641152,-404.29388804,0.00019178,2]
[375787237,1753746641161,-460.0,0.00019178,2]
[375787238,1753746641172,-460.0,0.00019178,2]
[375787239,1753746641183,-460.0,0.00019178,2]
[375787240,1753746641194,-460.0,0.00019178,2]
[375787241,1753746641208,-460.0,0.00019178,2]
[375787242,1753746641220,-460.0,0.00019178,2]
[375787243,1753746641230,-460.0,0.00019178,2]
[375787244,1753746641240,-460.0,0.00019178,2]
[375787245,1753746641250,-185.44477778,0.00019178,2]
[375787246,1753746641260,-460.0,0.00019178,2]
[375787247,1753746641269,-460.0,0.00019178,2]
[375787248,1753746641278,-460.0,0.00019178,2]
[375787249,1753746641288,-462.84881676,0.00019178,2]
[375787250,1753746641298,-460.0,0.00019178,2]
[375787251,1753746641308,-460.0,0.00019178,2]
[375787252,1753746641317,-460.0,0.00019178,2]
[375787253,1753746641327,-460.0,0.00019178,2]
[375787254,1753746641337,-460.0,0.00019178,2]
[375787255,1753746641347,-460.0,0.00019178,2]
[375787256,1753746641356,-460.0,0.00019178,2]
[375787257,1753746641366,-460.0,0.00019178,2]
[375787258,1753746641377,-460.0,0.00019178,2]
[375787259,1753746641387,-460.0,0.00019178,2]
[375787260,1753746641397,-460.87917909,0.00019178,2]
[375787261,1753746641406,-500.0,0.00019178,2]
[375787262,1753746641416,-460.0,0.00019178,2]
[375787263,1753746641426,-460.0,0.00019178,2]
[375787264,1753746641436,-460.0,0.00019178,2]
[375787265,1753746641446,-460.0,0.00019178,2]
[375787266,1753746641456,-460.0,0.00019178,2]
[375787267,1753746641465,-460.0,0.00019178,2]
[375787268,1753746641475,-460.0,0.00019178,2]
[375787269,1753746641484,-460.0,0.00019178,2]
[375787270,1753746641494,-460.0,0.00019178,2]
[375787271,1753746641504,-460.0,0.00019178,2]
[375787272,1753746641513,-460.0,0.00019178,2]
[375787273,1753746641523,-460.0,0.00019178,2]
[375787274,1753746641533,-602.1,0.00019178,2]
[375787275,1753746641542,-460.0,0.00019178,2]
[375787276,1753746641552,-460.0,0.00019178,2]
[375787277,1753746641562,-460.0,0.00019178,2]
[375787278,1753746641571,-500.0,0.00019178,2]
[375787279,1753746641581,-460.0,0.00019178,2]
[375787280,1753746641590,-460.0,0.00019178,2]
[375787281,1753746641601,-460.0,0.00019178,2]
[375787282,1753746641611,-460.0,0.00019178,2]
[375787283,1753746641621,-460.0,0.00019178,2]
[375787284,1753746641630,-460.0,0.00019178,2]
[375787285,1753746641641,-460.0,0.00019178,2]
[375787286,1753746641650,-460.0,0.00019178,2]
[375787287,1753746641660,-460.0,0.00019178,2]
[375787288,1753746641670,-460.0,0.00019178,2]
[375787289,1753746641679,-460.0,0.00019178,2]
[375787290,1753746641689,-460.0,0.00019178,2]
[375787291,1753746641699,-460.0,0.00019178,2]
[375787292,1753746641709,-460.0,0.00019178,2]
[375787293,1753746641718,-460.0,0.00019178,2]
[375787294,1753746641728,-460.0,0.00019178,2]
[375787295,1753746641737,-460.0,0.00019178,2]
[375787296,1753746641747,-454.63921108,0.00019178,2]
[375787297,1753746641757,-405.49422856,0.00019178,2]
[375787298,1753746641767,-460.0,0.00019178,2]
[375787299,1753746641776,-460.0,0.00019178,2]
[375787300,1753746641786,-465.42558319,0.00019178,2]
[375787301,1753746641795,-460.0,0.00019178,2]
[375787302,1753746641805,-460.0,0.00019178,2]
[375787303,1753746641815,-460.0,0.00019178,2]
[375787304,1753746641824,-460.0,0.00019178,2]
[375787305,1753746641833,-460.0,0.00019178,2]
[375787306,1753746641843,-460.0,0.00019178,2]
[375787307,1753746641853,-460.0,0.00019178,2]
[375787308,1753746641863,-460.0,0.00019178,2]
[375787309,1753746641872,-460.0,0.00019178,2]
[375787310,1753746641882,-460.0,0.00019178,2]
[375787311,1753746641891,-460.0,0.00019178,2]
[375787312,1753746641901,-460.0,0.00019178,2]
[375787313,1753746641910,-460.0,0.00019178,2]
[375787314,1753746641920,-460.0,0.00019178,2]
[375787315,1753746641933,-460.0,0.00019178,2]
[375787316,1753746641944,-460.0,0.00019178,2]
[375787317,1753746641954,-460.0,0.00019178,2]
[375787318,1753746641964,-464.6107008,0.00019178,2]
[375787319,1753746641974,-460.0,0.00019178,2]
[375787320,1753746641983,-460.0,0.00019178,2]
[375787321,1753746641993,-460.0,0.00019178,2]
[375787322,1753746642003,-460.0,0.00019178,2]
[375787323,1753746642013,-460.0,0.00019178,2]
[375787324,1753746642022,-460.0,0.00019178,2]
[375787325,1753746642032,-460.0,0.00019178,2]
[375787326,1753746642041,-460.0,0.00019178,2]
[375787327,1753746642051,-460.0,0.00019178,2]
[375787328,1753746642060,-460.0,0.00019178,2]
[375787329,1753746642070,-460.0,0.00019178,2]
[375787330,1753746642079,-460.0,0.00019178,2]
[375787331,1753746642089,-460.0,0.00019178,2]
[375787332,1753746642099,-460.0,0.00019178,2]
[375787333,1753746642109,-460.0,0.00019178,2]
[375787334,1753746642118,-460.0,0.00019178,2]
[375787335,1753746642127,-460.0,0.00019178,2]
[375787336,1753746642139,-460.0,0.00019178,2]
[375787337,1753746642149,-460.0,0.00019178,2]
[375787338,1753746642160,-460.0,0.00019178,2]
[375787339,1753746642170,-352.57194849,0.00019178,2]
[375787340,1753746642180,-460.0,0.00019178,2]
[375787341,1753746642191,-543.61282712,0.00019178,2]
[375787342,1753746642200,-460.0,0.00019178,2]
[375787343,1753746642211,-460.0,0.00019178,2]
[375787344,1753746642220,-460.0,0.00019178,2]
[375787345,1753746642231,-460.0,0.00019178,2]
[375787346,1753746642241,-460.0,0.00019178,2]
[375787347,1753746642251,-460.0,0.00019178,2]
[375787348,1753746642260,-460.0,0.00019178,2]
[375787349,1753746642270,-460.0,0.00019178,2]
[375787350,1753746642280,-460.0,0.00019178,2]
[375787351,1753746642291,-460.0,0.00019178,2]
[375787352,1753746642301,-460.0,0.00019178,2]
[375787353,1753746642311,-460.0,0.00019178,2]
[375787354,1753746642321,-460.0,0.00019178,2]
[375787355,1753746642331,-460.0,0.00019178,2]
[375787356,1753746642340,-460.0,0.00019178,2]
[375787357,1753746642350,-460.0,0.00019178,2]
[375787358,1753746642360,-460.0,0.00019178,2]
[375787359,1753746642370,-460.0,0.00019178,2]
[375787360,1753746642379,-264.69919789,0.00019178,2]
[375787361,1753746642389,-460.0,0.00019178,2]
[375787362,1753746642398,-460.0,0.00019178,2]
[375787363,1753746642408,-460.0,0.00019178,2]
[375787364,1753746642418,-460.0,0.00019178,2]
[375787365,1753746642428,-460.0,0.00019178,2]
[375787366,1753746642438,-460.0,0.00019178,2]
[375787367,1753746642450,-460.0,0.00019178,2]
[375787368,1753746642460,-460.0,0.00019178,2]
[375787369,1753746642469,-460.0,0.00019178,2]
[375787370,1753746642479,-460.0,0.00019178,2]
[375787371,1753746642489,-460.0,0.00019178,2]
[375787372,1753746642499,-460.0,0.00019178,2]
[375787373,1753746642508,-460.0,0.00019178,2]
[375787374,1753746642518,-460.0,0.00019178,2]
[375787375,1753746642528,-661.92,0.00019178,2]
[375787376,1753746642537,-460.0,0.00019178,2]
[375787377,1753746642548,-460.0,0.00019178,2]
[375787378,1753746642557,-460.0,0.00019178,2]
[375787379,1753746642567,-460.0,0.00019178,2]
[375787380,1753746642577,-390.47501876,0.00019178,2]